bitfinex-derivatives/quotes_ETHF0:USTF0_20250220
["timestamp","ask_amount","ask_price","bid_price","bid_amount"]
[1740085526290,0.72656,2751.3,2751.2,0.72655]
[1740085526494,0.72657,2751.2,2751.1,3.93439]
[1740085526695,0.72657,2751.3,2751.2,0.72656]
[1740085526896,0.72657,2751.2,2751.1,3.93437]
[1740085527091,0.5661,2751.6,2751.1,3.2078]
[1740085527294,0.72654,2751.4,2751.3,0.72653]
[1740085527796,0.5661,2751.6,2751.1,3.2078]
[1740085527989,0.72654,2751.4,2751.3,0.72653]
[1740085528191,0.72651,2751.5,2751.4,0.72649]
[1740085529397,0.72648,2751.6,2751.5,0.72647]
[1740085529599,0.72648,2751.6,2751.5,3.93427]
[1740085530595,1.44727,2751.7,2751.6,0.72647]
[1740085530993,0.72647,2751.7,2751.6,0.72647]
[1740085532895,0.5926,2752.0,2751.8,0.72641]
[1740085533107,0.5437,2752.3,2751.9,3.2078]
[1740085533399,0.72635,2752.1,2752.0,0.72633]
[1740085533594,0.72632,2752.2,2752.1,0.72631]
[1740085536298,0.7206,2752.4,2752.1,2.927]
[1740085536604,0.7206,2752.4,2752.3,3.93408]
[1740085536801,1.44686,2752.4,2752.3,3.93408]
[1740085537100,0.72626,2752.4,2752.3,3.2078]
[1740085539801,0.72626,2752.4,2752.3,3.93408]
[1740085540505,0.72626,2752.4,2752.3,3.2078]
[1740085541306,0.72626,2752.4,2752.3,3.93408]
[1740085541602,0.72626,2752.4,2752.3,3.2078]
[1740085542800,6.0,2752.4,2751.7,0.5698]
[1740085543007,0.72641,2751.8,2751.7,3.2078]
[1740085543204,1.81592,2752.0,2751.6,1.27596]
[1740085543405,0.72644,2751.7,2751.6,1.27596]
[1740085543805,0.72644,2751.7,2751.6,0.5495]
[1740085544013,0.72645,2751.7,2751.6,0.72644]
[1740085544605,0.5949,2751.9,2751.5,0.575]
[1740085544810,0.72643,2751.8,2751.7,3.93423]
[1740085545010,1.32129,2751.9,2751.8,0.72641]
[1740085545509,0.5949,2751.9,2751.7,3.2078]
[1740085545707,0.72641,2751.8,2751.7,3.93422]
[1740085546712,1.32131,2751.9,2751.8,0.72641]
[1740085547810,0.72641,2751.8,2751.7,3.2078]
[1740085548205,0.72641,2751.8,2751.7,3.93424]
[1740085552613,0.72641,2751.8,2751.7,3.2078]
[1740085553115,1.26661,2751.8,2751.7,3.2078]
[1740085553416,3.65561,2751.8,2751.7,3.2078]
[1740085554717,2.9292,2751.8,2751.5,0.63]
[1740085554916,0.72647,2751.6,2751.5,0.63]
[1740085555419,0.5407,2751.7,2751.1,3.2078]
[1740085555620,0.7266,2751.2,2751.1,3.93439]
[1740085558021,0.7266,2751.2,2751.1,3.2078]
[1740085558314,0.72663,2751.0,2750.9,0.00545683]
[1740085558715,0.72663,2751.0,2750.9,0.73210683]
[1740085559322,0.72663,2751.0,2750.9,0.00545683]
[1740085560720,0.72663,2751.0,2750.9,0.73210683]
[1740085561119,0.72663,2751.0,2750.9,0.00545683]
[1740085561520,0.72663,2751.0,2750.9,0.73210683]
[1740085562426,0.72662,2751.1,2751.0,0.7266]
[1740085564316,0.5458,2751.5,2751.0,1.81653]
[1740085564516,1.27232,2751.5,2751.4,0.72652]
[1740085565019,0.72652,2751.5,2751.4,0.72652]
[1740085566920,0.72652,2751.5,2751.2,3.2078]
[1740085566921,0.72655,2751.3,2751.2,3.2078]
[1740085576331,0.72663,2751.0,2750.9,3.77425683]
[1740085576536,0.72663,2751.0,2750.9,0.00545683]
[1740085582243,3.7883,2751.2,2750.3,3.2078]
[1740085582437,0.72678,2750.4,2750.3,3.2078]
[1740085583338,0.72678,2750.4,2750.3,3.93461]
[1740085583541,0.72678,2750.4,2750.3,3.2078]
[1740085584342,0.72678,2750.4,2750.3,3.93461]
[1740085585339,0.72678,2750.4,2750.3,3.2078]
[1740085585648,0.72678,2750.4,2750.3,3.93461]
[1740085586541,0.72678,2750.4,2750.3,3.2078]
[1740085589546,0.72678,2750.4,2750.3,3.93461]
[1740085590246,0.72678,2750.4,2750.3,3.2078]
[1740085593842,0.72684,2750.2,2750.1,0.63575683]
[1740085594049,0.72684,2750.2,2750.1,0.00545683]
[1740085600359,6.5894,2750.2,2749.5,1.1827]
[1740085600563,0.727,2749.6,2749.5,1.1827]
[1740085602964,0.5421,2749.8,2749.5,1.1827]
[1740085603168,2.9697,2749.9,2749.6,3.2078]
[1740085603368,3.11592,2749.9,2749.8,0.72694]
[1740085604460,2.389,2749.9,2749.7,0.5588]
[1740085604664,3.11594,2749.9,2749.8,0.72694]
[1740085605062,0.72694,2749.8,2749.7,1.28575]
[1740085605264,1.2679,2750.1,2749.7,0.5588]
[1740085605469,0.72694,2749.9,2749.8,0.72694]
[1740085605669,0.72694,2749.8,2749.7,1.28575]
[1740085606165,0.72697,2749.7,2749.6,3.2078]
[1740085606366,1.30597,2749.7,2749.6,3.2078]
[1740085607763,0.72705,2749.4,2749.3,3.21143786]
[1740085611173,0.72704,2749.5,2749.4,0.72704]
[1740085611862,1.1271,2749.6,2749.3,3.21143786]
[1740085612074,0.72705,2749.4,2749.3,3.93848786]
[1740085612265,0.72704,2749.5,2749.4,0.72704]
[1740085612568,0.72704,2749.5,2749.3,3.21143786]
[1740085612569,0.72705,2749.4,2749.3,3.93849786]
[1740085613473,0.72704,2749.5,2749.4,0.72702]
[1740085615068,0.5853,2749.6,2749.3,3.21143786]
[1740085615271,0.72705,2749.5,2749.4,0.72702]
[1740085615669,0.72698,2749.8,2749.7,0.72695]
[1740085616466,0.72689,2750.0,2749.9,0.72692]
[1740085616967,3.1114,2750.1,2749.7,1.6934]
[1740085617177,1.44827,2750.1,2750.0,0.72689]
[1740085617571,0.72689,2750.0,2749.9,3.93469]
[1740085618065,0.72689,2750.0,2749.9,3.2078]
[1740085618471,0.72694,2749.8,2749.7,0.5793]
[1740085620970,4.20724,2750.0,2749.6,3.2078]
[1740085621168,1.84157,2749.7,2749.6,3.2078]
[1740085624176,0.72705,2749.4,2749.3,3.21143786]
[1740085624975,0.72705,2749.4,2749.3,0.00363786]
[1740085626872,3.93485,2749.4,2749.3,0.00363786]
[1740085627178,12.84309,2749.4,2748.6,3.7935]
[1740085627372,0.72723,2748.7,2748.6,3.7935]
[1740085628670,0.72723,2748.7,2748.6,3.2078]
[1740085629372,0.72737,2748.2,2748.1,3.2078]
[1740085631073,0.5713,2748.4,2748.1,3.2078]
[1740085631270,0.72736,2748.3,2748.1,3.93518]
[1740085631469,0.72734,2748.3,2748.1,3.93518]
[1740085631671,0.5713,2748.4,2748.1,3.2078]
[1740085631672,0.72732,2748.4,2748.1,3.2078]
[1740085631875,0.72732,2748.4,2748.3,0.72734]
[1740085632071,0.72729,2748.5,2748.4,0.7273]
[1740085632271,0.72728,2748.6,2748.4,3.9351]
[1740085632468,0.72728,2748.6,2748.5,0.5541]
[1740085632672,0.72728,2748.6,2748.5,1.1329]
[1740085634878,0.72728,2748.6,2748.5,1.86019]
[1740085635792,0.7217,2748.8,2748.7,0.72723]
[1740085636178,1.44891,2748.8,2748.7,0.72723]
[1740085636377,0.58815683,2748.9,2748.7,0.72723]
[1740085636577,0.72721,2748.8,2748.7,0.72723]
[1740085636873,0.58815683,2748.9,2748.5,1.7212]
[1740085637073,0.58815683,2748.9,2748.4,3.2078]
[1740085637074,0.72729,2748.5,2748.4,3.2078]
[1740085639483,0.72739,2748.1,2748.0,1.0965]
[1740085640382,0.72739,2748.1,2748.0,0.538]
[1740085641587,0.5414,2748.3,2747.9,3.2078]
[1740085641779,0.72742,2748.0,2747.9,3.2078]
[1740085645686,0.72747,2747.8,2747.7,1.93289]
[1740085646595,0.72747,2747.8,2747.7,1.93288]
[1740085646893,0.72744,2748.0,2747.9,0.72744]
[1740085647092,0.72745,2747.9,2747.8,0.72745]
[1740085647593,1.81842,2748.2,2747.7,1.2054]
[1740085647897,0.72747,2747.9,2747.7,1.2054]
[1740085648091,0.72747,2747.8,2747.7,1.93287]
[1740085648296,0.72747,2747.9,2747.8,0.72746]
[1740085648993,0.72747,2747.8,2747.7,1.30198]
[1740085649391,0.72747,2747.8,2747.7,0.5745]
[1740085649590,0.7275,2747.7,2747.6,3.7548]
[1740085649992,0.7275,2747.7,2747.6,3.2078]
[1740085651097,1.8791,2747.7,2747.6,3.2078]
[1740085651293,1.8791,2747.7,2747.5,0.5896]
[1740085651491,1.8791,2747.7,2747.3,3.7501]
[1740085651492,1.1516,2747.7,2747.3,3.7501]
[1740085651795,0.72758,2747.4,2747.3,3.2078]
[1740085653191,0.72766,2747.1,2747.0,4.48597]
[1740085653398,0.72766,2747.1,2747.0,4.48598]
[1740085653593,0.72764,2747.2,2747.0,3.7583]
[1740085653802,0.72766,2747.1,2747.0,4.48598]
[1740085653993,0.72766,2747.1,2747.0,3.7583]
[1740085656300,0.72766,2747.1,2747.0,0.5505]
[1740085657303,0.72766,2747.1,2747.0,3.7583]
[1740085658803,0.72771,2746.9,2746.8,1.7235]
[1740085658998,0.72771,2746.9,2746.8,1.1725]
[1740085659191,0.72771,2746.9,2746.8,0.5414]
[1740085659794,2.97803,2747.2,2746.7,3.2078]
[1740085659993,0.72774,2746.8,2746.7,3.2078]
[1740085672702,0.72597801,2746.8,2746.7,3.2078]
[1740085674311,0.00545683,2747.3,2746.7,3.2078]
[1740085674517,0.00545683,2747.3,2747.2,0.72763]
[1740085675220,0.72763,2747.2,2747.1,1.85854]
[1740085675511,0.72763,2747.2,2745.8,1.51490987]
[1740085675512,1.81908,2747.2,2746.4,3.2078]
[1740085675720,0.72782,2746.5,2746.4,3.2078]
[1740085678213,0.72781,2746.6,2746.4,3.2078]
[1740085678517,0.72782,2746.5,2746.4,3.93564]
[1740085678816,0.72782,2746.5,2746.4,3.2078]
[1740085679017,0.5746,2746.8,2746.4,3.2078]
[1740085679216,0.7278,2746.6,2746.4,3.93562]
[1740085679413,0.7278,2746.6,2746.4,3.2078]
[1740085679617,0.7278,2746.6,2746.5,0.72782]
[1740085680219,0.5746,2746.8,2746.5,0.72782]
[1740085680418,0.72779,2746.6,2746.5,0.72782]
[1740085680815,0.72779,2746.6,2746.4,3.93562]
[1740085681012,0.72782,2746.5,2746.4,3.93562]
[1740085681216,0.72782,2746.5,2746.4,3.2078]
[1740085682121,0.72782,2746.5,2746.4,3.93564]
[1740085682818,0.72782,2746.5,2746.4,3.2078]
[1740085683126,0.72782,2746.5,2746.4,3.93564]
[1740085683325,0.72782,2746.5,2746.4,3.2078]
[1740085686427,0.72782,2746.5,2746.4,3.93564]
[1740085686628,0.72782,2746.5,2746.4,3.2078]
[1740085686816,0.72782,2746.5,2746.4,3.93564]
[1740085687022,0.72782,2746.5,2746.4,3.2078]
[1740085688826,1.81961,2746.4,2746.0,0.5743]
[1740085689023,0.72792,2746.1,2746.0,0.5743]
[1740085690328,1.81969,2746.3,2745.9,0.72796]
[1740085690522,0.72795,2746.0,2745.9,0.72796]
[1740085690927,0.5897,2746.1,2745.8,0.546]
[1740085691132,2.9807,2746.1,2745.7,0.6313]
[1740085691333,0.728,2745.8,2745.7,0.6313]
[1740085693725,0.5897,2746.1,2745.7,0.6313]
[1740085693927,0.5446,2746.3,2745.8,2.89921]
[1740085694231,0.7279,2746.2,2746.1,3.93571]
[1740085694425,0.72797,2745.9,2745.8,4.287]
[1740085694627,0.72805,2745.6,2745.5,3.2078]
[1740085694823,0.72805,2745.6,2745.5,4.287]
[1740085695828,0.72805,2745.6,2745.5,3.7488]
[1740085698432,2.391,2745.6,2744.9,3.2078]
[1740085698631,1.124,2745.5,2744.9,3.2078]
[1740085698929,1.82048,2745.1,2744.6,3.2078]
[1740085699134,0.72829,2744.7,2744.6,3.2078]
[1740085699332,6.1474,2745.0,2744.2,3.7506]
[1740085699536,0.5447,2744.6,2744.2,3.7506]
[1740085699842,0.72825,2744.9,2744.6,0.72832]
[1740085700132,2.9396,2745.0,2744.5,3.2078]
[1740085700333,4.76019,2745.0,2744.2,3.93621]
[1740085700540,4.76019,2745.0,2744.2,3.2078]
[1740085700834,2.9396,2745.0,2744.2,3.2078]
[1740085701037,2.9396,2745.0,2744.6,3.2078]
[1740085701530,0.72825,2744.9,2744.6,3.93611]
[1740085701732,3.66783,2745.0,2744.7,1.1588]
[1740085701932,3.66783,2745.0,2744.7,1.7117]
[1740085702135,2.391,2745.0,2744.7,1.7117]
[1740085702337,2.391,2745.0,2744.9,3.93604]
[1740085702636,0.72817,2745.2,2744.9,3.93604]
[1740085702842,3.66385,2745.3,2744.9,3.93604]
[1740085703337,3.66385,2745.3,2745.0,1.35971]
[1740085703538,2.391,2745.3,2745.2,0.72816]
[1740085704137,0.5863,2745.4,2745.0,0.6315]
[1740085704333,0.5863,2745.4,2745.2,3.2078]
[1740085704540,0.5863,2745.4,2745.3,0.72813]
[1740085704742,0.5863,2745.4,2745.3,1.86483]
[1740085705143,0.5863,2745.4,2745.3,1.1367]
[1740085706345,0.5863,2745.4,2745.3,1.86483]
[1740085708461,1.31441,2745.4,2745.3,1.1367]
[1740085708645,0.5863,2745.4,2745.3,1.1367]
[1740085709038,0.5863,2745.4,2745.3,1.86483]
[1740085709543,0.7226,2745.5,2745.3,1.1367]
[1740085709744,0.7226,2745.5,2745.4,0.72811]
[1740085709939,0.72811,2745.4,2745.3,2.43362]
[1740085710548,2.9814,2745.6,2745.3,2.43362]
[1740085710750,0.72811,2745.4,2745.3,2.43362]
[1740085711246,0.7281,2745.5,2745.4,0.72811]
[1740085711446,2.391,2745.6,2745.5,0.72808]
[1740085711837,0.72809,2745.5,2745.4,0.72809]
[1740085712044,0.72803,2745.7,2745.6,0.72804]
[1740085712652,1.28867683,2745.8,2745.5,3.2078]
[1740085712849,0.56065683,2745.8,2745.5,3.2078]
[1740085713043,0.72805,2745.6,2745.5,3.2078]
[1740085713251,0.72805,2745.6,2745.5,3.93588]
[1740085713649,0.72805,2745.6,2745.5,3.2078]
[1740085715142,0.549,2745.7,2745.2,3.2078]
[1740085715344,0.72813,2745.3,2745.2,3.2078]
[1740085715651,0.72813,2745.3,2745.2,3.93596]
[1740085716050,0.5537,2745.3,2745.2,3.93596]
[1740085717244,0.5537,2745.3,2745.2,3.2078]
[1740085718857,0.5537,2745.3,2745.2,3.93596]
[1740085720958,1.28183,2745.3,2745.2,3.2078]
[1740085721150,0.5537,2745.3,2745.2,3.2078]
[1740085721657,0.5537,2745.3,2745.2,3.93596]
[1740085725551,2.391,2745.4,2745.3,0.72813]
[1740085726154,3.11911,2745.4,2745.3,0.72813]
[1740085726661,0.72815,2745.3,2745.0,1.1793]
[1740085726961,2.391,2745.4,2745.0,0.6315]
[1740085727156,0.72819,2745.1,2745.0,0.6315]
[1740085727460,0.5525,2745.2,2744.9,3.2078]
[1740085727659,1.27011,2745.0,2744.9,3.93604]
[1740085727855,3.66111,2745.0,2744.9,3.93604]
[1740085728254,2.9329,2745.0,2744.9,3.93604]
[1740085728455,2.391,2745.0,2744.9,3.93604]
[1740085736554,2.00317,2745.2,2745.1,0.72819]
[1740085736762,4.39417,2745.2,2745.1,0.72819]
[1740085737168,3.67167,2745.2,2745.1,0.72819]
[1740085738670,2.9435,2745.2,2745.1,0.72819]
[1740085739671,3.67166,2745.2,2745.1,0.72819]
[1740085740871,0.7282,2745.1,2745.0,0.72819]
[1740085741168,2.9435,2745.2,2745.1,0.72819]
[1740085741371,3.67166,2745.2,2745.1,0.72819]
[1740085741566,2.9435,2745.2,2745.1,0.72819]
[1740085742469,3.67166,2745.2,2745.1,0.72819]
[1740085743971,2.9435,2745.2,2745.1,0.72819]
[1740085744863,3.67166,2745.2,2745.1,0.72819]
[1740085745666,0.7282,2745.1,2745.0,0.72819]
[1740085747172,0.72821,2745.0,2744.9,4.56763]
[1740085747569,0.72821,2745.0,2744.9,3.2078]
[1740085747768,4.76392,2745.2,2744.6,3.50835]
[1740085747769,4.76392,2745.2,2744.8,0.72825]
[1740085747971,0.72829,2744.7,2744.6,2.41591]
[1740085748171,0.72829,2744.7,2744.6,0.72831]
[1740085750772,3.25785357,2744.8,2744.5,3.2078]
[1740085750973,2.963,2744.8,2744.7,0.72829]
[1740085752274,0.572,2744.8,2744.7,0.72829]
[1740085754477,2.391,2745.0,2744.5,5.02866]
[1740085754478,2.391,2745.0,2744.5,3.2078]
[1740085754776,2.391,2745.0,2744.9,0.72824]
[1740085755578,2.9739,2745.2,2745.1,0.72819]
[1740085756169,2.391,2745.3,2744.9,1.82061]
[1740085756370,0.5829,2745.5,2745.0,1.8205]
[1740085756681,2.391,2745.4,2745.3,0.72811]
[1740085756879,2.9739,2745.5,2745.4,0.72811]
[1740085757078,3.70198,2745.5,2745.4,0.72811]
[1740085757280,2.9739,2745.5,2745.2,0.5817]
[1740085757478,0.72813,2745.4,2745.3,0.72813]
[1740085757867,2.9739,2745.5,2744.9,2.40231]
[1740085758071,2.9739,2745.5,2745.4,0.72811]
[1740085758569,3.70198,2745.5,2745.4,0.72811]
[1740085759070,3.70198,2745.5,2745.1,5.02827]
[1740085759374,2.9739,2745.5,2745.1,3.2078]
[1740085759571,2.9739,2745.5,2745.2,0.72815]
[1740085759572,0.72814,2745.3,2745.2,0.72815]
[1740085760773,0.72813,2745.4,2745.2,0.72814]
[1740085760971,2.9739,2745.5,2744.9,0.5817]
[1740085761180,0.72817,2745.2,2745.1,0.72818]
[1740085761375,2.9739,2745.5,2744.9,0.5817]
[1740085761576,2.9739,2745.5,2744.8,4.3512]
[1740085761774,0.72816,2745.3,2745.1,0.72816]
[1740085761973,0.72816,2745.3,2745.2,0.72816]
[1740085762380,0.72811,2745.4,2745.3,0.72811]
[1740085762579,0.72811,2745.4,2744.9,0.5796]
[1740085762580,0.72815,2745.3,2745.2,0.72816]
[1740085762780,0.72817,2745.2,2745.1,0.72817]
[1740085762981,0.72818,2745.2,2745.1,0.72818]
[1740085763378,0.72821,2745.0,2744.9,1.30783]
[1740085763978,0.5644,2745.0,2744.8,4.3512]
[1740085764182,0.5644,2745.0,2744.2,2.391]
[1740085764183,0.7283,2744.7,2744.6,0.7283]
[1740085764686,0.72831,2744.7,2744.6,0.72832]
[1740085764986,2.391,2744.7,2744.5,4.47863]
[1740085765282,0.5644,2744.6,2744.5,4.47863]
[1740085765783,1.29272,2744.6,2744.5,4.47863]
[1740085766282,0.5644,2744.6,2744.5,4.47863]
[1740085767784,2.391,2744.7,2744.6,0.72832]
[1740085767976,0.5748,2745.2,2744.6,0.72832]
[1740085768173,2.949,2745.3,2745.0,0.72821]
[1740085768174,2.391,2745.1,2745.0,0.72821]
[1740085768776,3.11919,2745.1,2745.0,0.72821]
[1740085768979,2.391,2745.1,2745.0,0.72821]
[1740085770185,5.5988,2745.4,2744.8,4.36]
[1740085770390,0.72816,2745.3,2745.1,0.72816]
[1740085770685,5.5988,2745.4,2744.8,4.36]
[1740085770877,0.72816,2745.2,2745.1,0.72816]
[1740085771082,5.5988,2745.4,2745.0,0.72819]
[1740085771483,0.72819,2745.1,2745.0,0.72819]
[1740085772389,0.72819,2745.1,2744.9,0.72822]
[1740085772788,0.7282,2745.1,2745.0,0.7282]
[1740085775391,0.72822,2745.0,2744.9,0.72823]
[1740085775588,0.72824,2744.9,2744.8,1.88045]
[1740085778091,0.72824,2744.9,2744.8,1.88047]
[1740085779388,2.9484,2745.0,2744.5,3.2078]
[1740085779591,0.72832,2744.6,2744.5,3.2078]
[1740085780796,0.72832,2744.6,2744.5,3.93615]
[1740085780997,0.72832,2744.6,2744.5,3.2078]
[1740085781586,4.76895,2745.0,2744.5,3.2078]
[1740085781790,0.72831,2744.7,2744.5,3.2078]
[1740085782092,2.9484,2745.0,2744.5,3.2078]
[1740085782595,0.72829,2744.8,2744.7,0.72829]
[1740085782991,0.72829,2744.8,2744.5,3.2078]
[1740085783190,0.72829,2744.7,2744.6,0.7283]
[1740085783390,2.9484,2745.0,2744.6,0.7283]
[1740085783697,0.72829,2744.7,2744.6,0.7283]
[1740085783998,0.72829,2744.8,2744.5,3.2078]
[1740085784296,2.9484,2745.0,2744.5,3.2078]
[1740085784697,0.72828,2744.8,2744.7,0.72828]
[1740085784894,0.7283,2744.7,2744.6,0.72831]
[1740085785289,0.72828,2744.8,2744.7,0.72828]
[1740085785490,0.5574,2745.0,2744.5,3.2078]
[1740085785697,0.72824,2744.9,2744.8,0.72826]
[1740085787794,2.9484,2745.0,2744.9,0.72824]
[1740085787995,3.7095,2745.1,2745.0,0.72821]
[1740085789301,1.3185,2745.1,2745.0,0.72821]
[1740085789503,1.31849,2745.1,2745.0,0.72821]
[1740085790601,0.5903,2745.1,2744.8,4.9085]
[1740085790798,0.72824,2744.9,2744.8,5.63676]
[1740085791007,0.72828,2744.8,2744.7,0.72828]
[1740085792402,0.5903,2745.1,2744.5,4.9041]
[1740085792604,0.72825,2744.9,2744.8,0.72824]
[1740085792903,0.72826,2744.9,2744.8,0.72824]
[1740085794504,0.72828,2744.8,2744.7,0.72827]
[1740085795698,0.5903,2745.1,2744.5,6.72496]
[1740085795904,0.72828,2744.8,2744.7,0.72827]
[1740085798306,0.72826,2744.9,2744.8,0.72825]
[1740085799703,0.5903,2745.1,2744.5,6.72497]
[1740085800005,0.72824,2745.0,2744.9,0.72823]
[1740085800307,0.72821,2745.0,2744.9,0.72822]
[1740085800503,0.5903,2745.1,2744.6,1.82081]
[1740085800701,0.72821,2745.0,2744.9,0.72823]
[1740085800902,0.5903,2745.1,2744.5,6.72497]
[1740085801200,0.72826,2744.9,2744.8,0.72825]
[1740085801498,1.3185,2745.1,2745.0,0.72821]
[1740085801700,0.5903,2745.1,2745.0,0.72821]
[1740085802108,1.31849,2745.1,2745.0,1.90161]
[1740085802710,1.31849,2745.1,2745.0,1.1734]
[1740085803111,0.72821,2745.0,2744.9,0.5484]
[1740085803315,0.72821,2745.0,2744.5,5.02862]
[1740085803316,0.72829,2744.8,2744.7,0.72829]
[1740085803609,0.72829,2744.7,2744.6,2.41671]
[1740085803799,0.72829,2744.7,2744.6,1.6884]
[1740085804211,0.72829,2744.7,2744.6,2.41672]
[1740085804511,0.72829,2744.7,2744.6,1.6884]
[1740085804717,0.72832,2744.6,2744.5,3.2078]
[1740085805009,0.5494,2744.6,2744.4,0.6317]
[1740085805202,1.32205,2744.5,2744.4,0.6317]
[1740085805409,1.86075,2744.5,2744.4,0.6317]
[1740085805603,0.72845,2744.2,2743.9,3.2078]
[1740085805809,1.1324,2744.5,2743.9,3.93628]
[1740085805810,0.72846,2744.1,2743.9,3.93628]
[1740085806015,0.72846,2744.1,2743.6,3.2078]
[1740085806016,2.39,2744.1,2743.6,3.2078]
[1740085806207,1.1528,2744.0,2743.6,0.72858]
[1740085806408,1.1528,2744.0,2743.3,3.2078]
[1740085806608,1.1528,2744.0,2743.6,3.2078]
[1740085806811,0.72854,2743.8,2743.6,3.2078]
[1740085807004,0.5566,2744.0,2743.9,0.72851]
[1740085807209,0.00545683,2744.3,2743.9,3.2078]
[1740085807414,0.00545683,2744.3,2744.2,3.93623]
[1740085808815,0.00545683,2744.3,2743.9,3.2078]
[1740085809002,0.72848,2744.0,2743.8,3.2078]
[1740085809208,0.72848,2744.0,2743.8,3.93633]
[1740085809407,0.72851,2743.9,2743.8,3.2078]
[1740085810513,0.72851,2743.9,2743.7,1.86035]
[1740085811217,0.5494,2744.0,2743.7,1.1318]
[1740085811406,0.72852,2743.9,2743.7,1.1318]
[1740085811717,0.5494,2744.0,2743.7,1.1318]
[1740085812217,0.72852,2743.9,2743.7,1.1318]
[1740085812417,0.72852,2743.9,2743.7,1.86035]
[1740085812717,0.72852,2743.9,2743.7,1.1318]
[1740085813009,0.72852,2743.9,2743.7,1.86034]
[1740085813523,0.5494,2744.0,2743.6,0.632]
[1740085813709,0.72856,2743.7,2743.6,0.632]
[1740085813910,3.11956,2743.7,2743.6,0.632]
[1740085814110,6.32736,2743.7,2743.6,0.632]
[1740085815019,0.72867,2743.3,2743.1,0.72871]
[1740085815314,1.6909,2743.6,2743.0,4.9414]
[1740085815912,0.72872,2743.1,2743.0,3.2078]
[1740085817215,0.5565,2743.2,2742.7,1.6759]
[1740085817417,0.7288,2742.8,2742.4,3.2078]
[1740085817617,0.72886,2742.6,2742.4,3.2078]
[1740085817822,0.584,2742.7,2742.6,0.72885]
[1740085818810,0.584,2742.7,2742.6,1.28535]
[1740085820018,1.31282,2742.7,2742.6,1.28535]
[1740085820517,0.584,2742.7,2742.6,1.28535]
[1740085820912,0.584,2742.7,2742.4,3.2078]
[1740085821425,2.975,2742.7,2742.6,0.72885]
[1740085822313,3.70382,2742.7,2742.6,0.72885]
[1740085822918,2.975,2742.7,2742.6,0.72885]
[1740085823112,3.70382,2742.7,2742.6,0.72885]
[1740085823312,2.975,2742.7,2742.6,0.72885]
[1740085824024,2.391,2742.7,2742.6,0.72885]
[1740085825223,0.00546677,2742.9,2742.4,3.7564]
[1740085825426,0.00546677,2742.9,2742.8,0.7288]
[1740085825825,0.00546677,2742.9,2742.8,1.2897]
[1740085827630,0.00546677,2742.9,2742.7,3.2078]
[1740085827824,0.73425677,2742.9,2742.8,0.7288]
[1740085829936,0.00546677,2742.9,2742.7,2.479]
[1740085830138,0.72888,2742.5,2742.4,3.93669]
[1740085830437,0.72904,2741.9,2741.8,3.2078]
[1740085830642,3.2078,2742.2,2741.5,3.2078]
[1740085830829,3.7707,2742.2,2741.6,0.72912]
[1740085831035,3.7707,2742.2,2741.2,3.2078]
[1740085831235,0.72916,2741.5,2741.0,0.72927]
[1740085831439,2.38536,2742.2,2741.0,0.72927]
[1740085831440,3.5019,2741.4,2741.0,3.2078]
[1740085831729,2.391,2741.3,2741.0,3.2078]
[1740085831937,2.391,2741.3,2741.0,3.93706]
[1740085832137,2.391,2741.3,2741.0,3.93705]
[1740085832339,2.391,2741.3,2741.0,3.2078]
[1740085832533,2.392,2741.3,2741.0,3.2078]
[1740085832734,1.1109,2741.4,2741.0,3.2078]
[1740085832933,2.392,2741.6,2741.0,3.2078]
[1740085833136,3.2078,2741.9,2741.3,3.2078]
[1740085833339,0.72912,2741.7,2741.3,3.2078]
[1740085833639,0.72909,2741.7,2741.3,3.93698]
[1740085833843,0.72909,2741.7,2741.3,3.2078]
[1740085834037,0.5509,2741.8,2741.4,0.6325]
[1740085834238,0.72912,2741.6,2741.4,0.6325]
[1740085834444,2.393,2741.5,2741.4,0.6325]
[1740085834639,2.393,2741.5,2741.1,0.5645]
[1740085834942,0.7292,2741.4,2741.1,0.5645]
[1740085836438,0.7292,2741.4,2741.0,3.2078]
[1740085836639,0.5862,2741.3,2741.0,3.2078]
[1740085837434,0.88345903,2741.3,2741.0,3.2078]
[1740085837633,0.5862,2741.3,2741.0,3.93707]
[1740085838037,0.5862,2741.3,2741.0,3.2078]
[1740085838238,0.5862,2741.3,2741.0,3.93706]
[1740085838436,0.5862,2741.3,2741.0,3.2078]
[1740085838437,1.3154,2741.3,2741.0,3.2078]
[1740085839445,1.3154,2741.3,2741.0,3.93708]
[1740085839845,0.29008177,2741.5,2741.4,0.72917]
[1740085840146,2.397,2741.5,2741.4,0.72917]
[1740085841148,2.69019655,2741.5,2741.4,0.72917]
[1740085841343,2.397,2741.5,2741.2,0.5577]
[1740085841545,2.397,2741.5,2741.4,0.72917]
[1740085842648,0.586,2741.8,2741.4,0.72917]
[1740085842947,0.00546677,2742.0,2741.9,0.72904]
[1740085846552,0.00546677,2742.0,2741.9,3.93684]
[1740085846752,3.2078,2743.3,2741.9,9.2078]
[1740085847052,3.2078,2743.3,2742.3,3.2078]
[1740085847053,2.9847,2743.0,2742.3,3.2078]
[1740085847243,0.72878,2742.9,2742.8,0.7288]
[1740085847447,0.5877,2743.0,2742.9,0.72877]
[1740085848153,1.31644,2743.0,2742.7,3.2078]
[1740085848457,0.72879,2742.9,2742.7,3.93661]
[1740085848954,0.72879,2742.9,2742.8,0.7288]